lending/lending_fUSD_20250315
["ID","MTS","AMOUNT","RATE_DAILY","PERIOD"]
[356182236,1742037031568,-6901.89543815,0.00024637,2]
[356182237,1742037031704,-890.00006576,0.00024637,2]
[356182238,1742037031717,-15578.45184087,0.00024637,2]
[356182239,1742037031729,-851.36406778,0.00024637,2]
[356182240,1742037031742,-370.76858744,0.00024637,2]
[356182241,1742037031751,-547.25853702,0.000249,4]
[356182242,1742037031763,-513.68550688,0.000249,4]
[356182243,1742037031774,-1467.02145248,0.000249,4]
[356182244,1742037031784,-400.0,0.00025,2]
[356182245,1742037031793,-150.99,0.00026492,2]
[356182246,1742037031804,-420.0,0.00026492,2]
[356182247,1742037031816,-156.8,0.00026849,2]
[356182248,1742037031826,-450.0,0.00027,2]
[356182249,1742037031836,-912.87,0.00027,2]
[356182250,1742037031846,-286.31,0.00027,2]
[356182251,1742037031854,-9999.99,0.00027,2]
[356182252,1742037031863,-150.0,0.00027101,2]
[356182253,1742037031872,-550.0,0.00027101,2]
[356182254,1742037031881,-1623.0492934,0.00027652,2]
[356182255,1742037031890,-1627.90957919,0.000279,2]
[356182256,1742037031899,-1500.0,0.000279,2]
[356182257,1742037031908,-154.0,0.00028717,2]
[356182258,1742037031917,-500.0,0.00029,2]
[356182259,1742037031928,-210.020118,0.00029,5]
[356182260,1742037031937,-1000.0,0.0003,120]
[356182261,1742037031946,-1500.0,0.000307,2]
[356182262,1742037031955,-550.0,0.00031,2]
[356182263,1742037031963,-200.0,0.00031305,2]
[356182264,1742037031972,-2000.0,0.00031403,120]
[356182265,1742037031981,-904.886,0.00031458,2]
[356182266,1742037031990,-1428.0,0.00031458,2]
[356182267,1742037031999,-541.0,0.00031458,2]
[356182268,1742037032009,-628.068,0.00031458,2]
[356182269,1742037032018,-1270.0,0.00031458,2]
[356182270,1742037032027,-151.0,0.00031458,2]
[356182271,1742037032036,-1114.0,0.00031458,2]
[356182272,1742037032045,-557.07,0.00031478,2]
[356182274,1742037032055,-150.0,0.00031493,2]
[356182276,1742037032065,-158.46,0.00031519,2]
[356182278,1742037032075,-1064.13,0.00031559,120]
[356182280,1742037032084,-1000.0,0.00031566,2]
[356182281,1742037032094,-2751.0,0.00031598,120]
[356182282,1742037032104,-1546.12,0.00031674,2]
[356182283,1742037032114,-250.0,0.0003183,2]
[356182284,1742037032124,-291.45,0.0003183,2]
[356182285,1742037032133,-23900.0,0.00031852,2]
[356182286,1742037032143,-292.43,0.00031898,2]
[356182287,1742037032152,-1201.86372106,0.00032028,2]
[356182297,1742037037471,-898.169,0.00032028,2]
[356182298,1742037037581,-1638.82727894,0.00032028,2]
[356182299,1742037037592,-152.6,0.00032083,30]
[356182300,1742037037602,-1000.0,0.000325,120]
[356182301,1742037037612,-156.8,0.00032646,2]
[356182302,1742037037621,-164.88,0.00032835,2]
[356182303,1742037037631,-3535.7214648,0.00033,2]
[356182304,1742037037642,-600.0,0.00033,2]
[356182305,1742037037652,-4276.5165,0.00033072,2]
[356182306,1742037037662,-151.0,0.00033151,7]
[356182307,1742037037671,-151.0,0.00033151,7]
[356182308,1742037037681,-323.0793,0.00033151,52]
[356182310,1742037037690,-35005.0,0.00033356,120]
[356182311,1742037037699,-3025.27445631,0.00033399,2]
[356182312,1742037037710,-151.14033984,0.000334,2]
[356182313,1742037037719,-200.0,0.00033499,2]
[356182314,1742037037730,-434.85,0.000335,31]
[356182315,1742037037739,-434.85,0.000335,31]
[356182316,1742037037749,-434.85,0.000335,31]
[356182317,1742037037758,-434.85,0.000335,31]
[356182318,1742037037767,-434.85,0.000335,31]
[356182319,1742037037776,-434.85,0.000335,31]
[356182320,1742037037786,-434.85,0.000335,31]
[356182321,1742037037795,-434.85,0.000335,31]
[356182322,1742037037805,-434.85,0.000335,31]
[356182323,1742037037814,-434.85,0.000335,31]
[356182324,1742037037824,-434.85,0.000335,31]
[356182325,1742037037833,-434.85,0.000335,31]
[356182326,1742037037842,-1000.0,0.00033759,2]
[356182327,1742037037851,-843.0,0.00033941,2]
[356182328,1742037037860,-292.43,0.00034162,2]
[356182329,1742037037870,-843.0,0.00034291,2]
[356182330,1742037037879,-1114.0,0.00034458,2]
[356182331,1742037037889,-200.0,0.00034478,120]
[356182332,1742037037899,-150.0,0.00034548,10]
[356182333,1742037037908,-843.0,0.00034641,2]
[356182334,1742037037918,-434.85,0.000347,31]
[356182335,1742037037927,-434.85,0.000347,31]
[356182336,1742037037937,-434.85,0.000347,31]
[356182337,1742037037947,-434.85,0.000347,31]
[356182338,1742037037956,-434.85,0.000347,31]
[356182339,1742037037966,-434.85,0.000347,31]
[356182340,1742037037975,-434.85,0.000347,31]
[356182341,1742037037985,-434.85,0.000347,31]
[356182342,1742037037995,-434.85,0.000347,31]
[356182343,1742037038004,-434.85,0.000347,31]
[356182344,1742037038014,-434.85,0.000347,31]
[356182345,1742037038024,-434.85,0.000347,31]
[356182346,1742037038033,-434.85,0.000347,31]
[356182347,1742037038043,-434.85,0.000347,31]
[356182348,1742037038052,-434.85,0.000347,31]
[356182349,1742037038062,-434.85,0.000347,31]
[356182350,1742037038071,-434.85,0.000347,31]
[356182351,1742037038081,-434.85,0.000347,31]
[356182352,1742037038091,-434.85,0.000347,31]
[356182353,1742037038102,-434.85,0.000347,31]
[356182354,1742037038112,-434.85,0.000347,31]
[356182355,1742037038121,-434.85,0.000347,31]
[356182356,1742037038131,-434.85,0.000347,31]
[356182357,1742037038140,-434.85,0.000347,31]
[356182358,1742037038150,-849.1376,0.000348,2]
[356182359,1742037038161,-1018.94864984,0.0003489,120]
[356182360,1742037038171,-189.3556,0.000349,2]
[356182361,1742037038181,-324.4442,0.000349,2]
[356182362,1742037038191,-2283.2874,0.000349,2]
[356182363,1742037038201,-2950.4012,0.000349,2]
[356182364,1742037038211,-10963.4533,0.000349,2]
[356182365,1742037038221,-1429.3883,0.000349,2]
[356182366,1742037038231,-15614.007,0.000349,2]
[356182367,1742037038241,-300.0,0.000349,2]
[356182368,1742037038253,-3025.27445625,0.00034943,2]
[356182369,1742037038263,-239.557236,0.0003497,7]
[356182370,1742037038272,-523.51760389,0.00034973,5]
[356182371,1742037038282,-500.0,0.00034973,5]
[356182372,1742037038291,-3317.35825705,0.0003499,2]
[356182376,1742037039630,-3000.0,0.0003499,2]
[356182377,1742037039643,-775.5981233,0.0003499,2]
[356182378,1742037039655,-1260.54888892,0.0003499,2]
[356182379,1742037039664,-41.86212969,0.00034991,2]
[356182380,1742037040048,-455.78372172,0.00034991,2]
[356182381,1742037040102,-345.35414859,0.00034991,2]
[356182382,1742037040111,-206.20225763,0.00035,120]
[356182383,1742037040121,-2735.74039309,0.00035,120]
[356182384,1742037040132,-267.99824585,0.00035,120]
[356182407,1742037042557,-322.04281444,0.00035,120]
[356182408,1742037042566,-3433.26635965,0.00035,30]
[356182409,1742037042578,-530.51616546,0.00035,30]
[356182410,1742037042589,-4467.25770899,0.00035,30]
[356182411,1742037042602,-3554.4,0.00035,30]
[356182412,1742037042630,-5264.0,0.00035,30]
[356182413,1742037042644,-60884.20521107,0.00035,30]
[356182414,1742037042654,-500.0,0.00035,2]
[356182415,1742037042664,-650.0,0.00035,2]
[356182416,1742037042673,-1000.0,0.00035,120]
[356182417,1742037042681,-900.0,0.00035,13]
[356182418,1742037042691,-900.0,0.00035,13]
[356182419,1742037042701,-900.0,0.00035,13]
[356182420,1742037042710,-900.0,0.00035,13]
[356182421,1742037042720,-900.0,0.00035,13]
[356182422,1742037042730,-900.0,0.00035,13]
[356182423,1742037042739,-900.0,0.00035,13]
[356182424,1742037042749,-900.0,0.00035,13]
[356182425,1742037042759,-900.0,0.00035,13]
[356182426,1742037042768,-900.0,0.00035,13]
[356182427,1742037042777,-159.45316124,0.00035068,30]
[356182428,1742037042786,-843.0,0.00035341,2]
[356182429,1742037042796,-1064.13,0.00035503,120]
[356182430,1742037042806,-177.7041,0.0003565,2]
[356182431,1742037042815,-843.0,0.00035691,2]
[356182432,1742037042824,-16707.0105385,0.0003577,2]
[356182433,1742037042833,-631.94,0.00035779,2]
[356182434,1742037042843,-19537.39144079,0.0003578,2]
[356182435,1742037042854,-554.27576923,0.0003578,2]
[356182436,1742037042870,-2841.29997,0.0003578,2]
[356182440,1742037045476,-250.0,0.000266,2]
[356182441,1742037045486,-11007.52496989,0.0003578,2]
[356182442,1742037045495,-8353.50526927,0.0003578,2]
[356182443,1742037045505,-434.85,0.000358,31]
[356182444,1742037045516,-434.85,0.000358,31]
[356182445,1742037045526,-434.85,0.000358,31]
[356182446,1742037045538,-434.85,0.000358,31]
[356182447,1742037045549,-434.85,0.000358,31]
[356182448,1742037045560,-434.85,0.000358,31]
[356182449,1742037045570,-434.85,0.000358,31]
[356182450,1742037045579,-434.85,0.000358,31]
[356182451,1742037045588,-434.85,0.000358,31]
[356182452,1742037045601,-434.85,0.000358,31]
[356182453,1742037045612,-434.85,0.000358,31]
[356182454,1742037045621,-434.85,0.000358,31]
[356182455,1742037045631,-434.85,0.000358,31]
[356182456,1742037045641,-434.85,0.000358,31]
[356182457,1742037045650,-434.85,0.000358,31]
[356182458,1742037045660,-434.85,0.000358,31]
[356182459,1742037045670,-434.85,0.000358,31]
[356182460,1742037045680,-434.85,0.000358,31]
[356182461,1742037045690,-434.85,0.000358,31]
[356182462,1742037045699,-434.85,0.000358,31]
[356182463,1742037045709,-434.85,0.000358,31]
[356182464,1742037045719,-434.85,0.000358,31]
[356182465,1742037045728,-434.85,0.000358,31]
[356182466,1742037045738,-434.85,0.000358,31]
[356182467,1742037045748,-250.0,0.00036,2]
[356182468,1742037045758,-843.0,0.00036041,2]
[356182469,1742037045767,-292.43,0.00036426,2]
[356182470,1742037045777,-330.33777178,0.00036487,2]
[356182476,1742038102506,2097.23795173,0.00012,30]
[356182491,1742038231725,-208.08643157,9.999e-05,2]
[356182492,1742038231735,-497.58543752,0.0001,2]
[356182493,1742038231744,-4753.01590401,0.0001,2]
[356182494,1742038231771,-2116.49610824,0.0001,2]
[356182495,1742038231796,-1248.674,0.0001,2]
[356182496,1742038231911,-773.44489308,0.0001,2]
[356182497,1742038231923,-2949.24736278,0.0001,2]
[356182498,1742038231935,-493.78059,0.0001,2]
[356182499,1742038231969,-903.8327409,0.0001,2]
[356182503,1742038237579,-477.54825113,0.0001,2]
[356182504,1742038237636,-314.75910013,0.0001,2]
[356182505,1742038237693,-16403.8,0.0001,2]
[356182506,1742038237749,-6291.33698033,0.0001,2]
[356182507,1742038237760,-304.28076881,0.0001,2]
[356182513,1742038239772,-7213.03909393,0.0001,2]
[356182514,1742038239783,-3098.10309218,0.0001,2]
[356182515,1742038239826,-4748.32835901,0.0001,2]
[356182538,1742039356921,-953.84519813,9.9e-05,3]
[356182539,1742039386899,-267.5963,9.899e-05,2]
[356182540,1742039416435,-182.91008178,9.899e-05,2]
[356182541,1742039431823,-361.94112733,9.899e-05,2]
[356182542,1742039431837,-3347.51929089,9.899e-05,2]
[356182543,1742039431847,-146.15480187,9.9e-05,3]
[356182544,1742039431858,-210.020118,9.973e-05,2]
[356182545,1742039431867,-300.0,9.999e-05,2]
[356182546,1742039431876,-248.79271876,9.999e-05,2]
[356182547,1742039431885,-9510.46412435,9.999e-05,2]
[356182548,1742039431896,-99884.88037458,9.999e-05,2]
[356182549,1742039431907,-24654.78768023,9.999e-05,2]
[356182550,1742039431918,-900.0,9.999e-05,2]
[356182551,1742039431929,-658.53,9.999e-05,2]
[356182552,1742039431940,-641.82964109,9.999e-05,2]
[356182553,1742039431951,-706.29087696,9.999e-05,2]
[356182554,1742039431983,-4014.05193758,9.999e-05,2]
[356182555,1742039431996,-483.05887267,9.999e-05,2]
[356182556,1742039432007,-491.99011553,9.999e-05,2]
[356182557,1742039432019,-881.66184815,9.999e-05,2]
[356182558,1742039432153,-1934.99999999,9.999e-05,2]
[356182559,1742039432198,-295.95831041,9.999e-05,2]
[356182561,1742039437704,-11628.40138853,9.999e-05,2]
[356182562,1742039437715,-22217.62012889,0.0001,2]
[356182563,1742039437914,-1704.575,0.0001,2]
[356182569,1742039439900,-897.02122831,0.0001,2]
[356182570,1742039440006,-258.8204571,0.0001,2]
[356182571,1742039440215,-580.32,0.0001,2]
[356182572,1742039440275,-8371.74499806,0.0001,2]
[356182573,1742039440287,-1180.82964998,0.0001,2]
[356182574,1742039440323,-1358.22391178,0.0001,2]
[356182582,1742039442930,-1024.04291605,0.0001,2]
[356182583,1742039442942,-927.77,0.0001,2]
[356182584,1742039442954,-2157.04558531,0.0001,2]
[356182585,1742039443033,-335.66972377,0.0001,2]
[356182592,1742039881996,-274.0,9.899e-05,2]
[356182593,1742040004868,-150.0,9.899e-05,2]
[356182594,1742040183540,-150.0,9.899e-05,2]
[356182595,1742040360073,-156.9462,9.9e-05,2]
[356182596,1742040362254,-1406.431,9.9e-05,2]
[356182597,1742040417992,-156.9462,9.9e-05,2]
[356182598,1742040418020,-847.1254,9.9e-05,2]
[356182599,1742040418045,-4512.9697,9.9e-05,2]
[356182600,1742040418068,-3676.3813,9.9e-05,2]
[356182601,1742040418093,-298.8855,9.9e-05,2]
[356182602,1742040418116,-397.1099,9.9e-05,2]
[356182603,1742040418140,-486.1839,9.9e-05,2]
[356182604,1742040418163,-370.0437,9.9e-05,2]
[356182605,1742040418187,-223.2153,9.9e-05,2]
[356182606,1742040418212,-349.64955027,0.0001,2]
[356182607,1742040418238,-8681.48954973,0.0001,2]
[356182608,1742040448223,-219.39314108,9.9e-05,2]
[356182609,1742040448248,-11875.38670189,9.91e-05,2]
[356182610,1742040448275,-47905.22015703,0.0001,2]
[356182611,1742040462503,-168.2308,9.9e-05,2]
[356182612,1742040542185,-5157.43043359,9.9e-05,2]
[356182613,1742040603493,-300.0,9.899e-05,2]
[356182616,1742040632070,-157.0,9.9e-05,3]
[356182617,1742040632080,-1005.95646641,9.9e-05,2]
[356182618,1742040632089,-4084.6941,9.9e-05,2]
[356182619,1742040632100,-150.0,9.999e-05,2]
[356182620,1742040632110,-174.82477513,0.0001,2]
[356182621,1742040632119,-1484.37894214,0.0001,2]
[356182622,1742040632131,-306.3273312,0.0001,2]
[356182623,1742040632164,-7441.85600017,0.0001,2]
[356182624,1742040632222,-299.76458201,0.0001,2]
[356182625,1742040632235,-4208.68165541,0.0001,2]
[356182626,1742040635250,-4529.78895754,0.0001,2]
[356182862,1742040637974,-6720.65848054,0.0001,2]
[356182863,1742040637986,-2216.76534,0.0001,2]
[356182864,1742040637998,-533.58146699,0.0001,2]
[356182865,1742040638009,-414.26349789,0.0001,2]
[356182866,1742040638033,-1682.2401957,0.0001,2]
[356182867,1742040638185,-6082.2627422,0.0001,2]
[356182877,1742040640749,-4172.74500702,0.0001,2]
[356182878,1742040640775,-997.65756837,0.0001,2]
[356182879,1742040640786,-607.944495,0.0001,2]
[356182880,1742040640871,-6937.26073498,0.0001,2]
[356182881,1742040641035,-1413.9207345,0.0001,2]
[356182882,1742040641046,-134057.08744459,0.0001,2]
[356182883,1742040641060,-8963.85027876,0.0001,2]
[356182910,1742040643120,-17839.22223483,0.0001,2]
[356182912,1742040643131,-1737.55535212,0.0001,2]
[356182930,1742040646051,-500.0,0.0001,2]
[356182931,1742040646101,-602.0,0.0001,2]
[356182932,1742040646155,-1002.39763281,0.0001,2]
[356182933,1742040646166,-756.78063558,0.0001,2]
[356182934,1742040646262,-17760.2,0.0001,2]
[356182935,1742040646274,-8312.48845889,0.0001,2]
[356182936,1742040646369,-1303.17693193,0.0001,2]
[356182940,1742040655048,-490.7794,9.8e-05,2]
[356182942,1742041110607,-768.72708791,9.8e-05,2]
[356182943,1742041115878,700.0,0.00020011,120]
[356182944,1742041146081,227.63,0.00014,30]
[356182959,1742041443905,-150.0,9.8e-05,2]
[356182960,1742041446576,-760.10274327,9.8e-05,2]
[356182969,1742041805098,-150.0,9.8e-05,2]
[356182970,1742041806754,-188.92016882,9.8e-05,2]
[356182979,1742041835403,-175.023,9.8e-05,2]
[356182980,1742041835414,-150.0,9.899e-05,2]
[356182981,1742041835425,-189.20156957,9.9e-05,2]
[356182982,1742041835483,-810.79843043,9.9e-05,2]
[356182983,1742041835493,-7309.31447635,9.9e-05,2]
[356182984,1742041835506,-756.79311258,9.9e-05,2]
[356182985,1742041835635,-4258.44011107,9.9e-05,2]
[356182986,1742041835646,-219.39314108,9.9e-05,2]
[356182987,1742041835656,-2500.0,9.9e-05,2]
[356182988,1742041835666,-150.0,9.945e-05,2]
[356182989,1742041835676,-1244.5779498,9.99e-05,2]
[356182990,1742041835688,-28074.92304979,9.99e-05,2]
[356182991,1742041835700,-4401.90883407,9.99e-05,2]
[356182996,1742041838336,-3051.14907324,9.99e-05,2]
[356182997,1742041838346,-174.82477513,0.0001,2]
[356182998,1742041838355,-27412.65748142,0.0001,2]
[356182999,1742041838365,-34048.72192517,0.0001,2]
[356183000,1742041838395,-252.35315091,0.0001,2]
[356183001,1742041838406,-13002.84870973,0.0001,2]
[356183002,1742041838417,-294.75802627,0.0001,2]
[356183003,1742041838456,-746.98779427,0.0001,2]
[356183004,1742041838467,-1943.46898318,0.0001,2]
[356183005,1742041838619,-2012.6,0.0001,2]
[356183009,1742041840724,-482.30682496,9.999e-05,2]
[356183010,1742041840785,-17.69317504,9.999e-05,2]
[356183011,1742041840794,-298.7217127,9.999e-05,2]
[356183012,1742041840803,-5054.48891262,0.0001,2]
[356183013,1742041840814,-676.71500003,0.0001,2]
[356183014,1742041840825,-670.05637839,0.0001,2]
[356183018,1742041843285,-1947.92866936,0.0001,2]
[356183019,1742041844665,-31574.99375772,0.0001,2]
[356183025,1742041847071,-2279.43137209,0.0001,2]
[356183028,1742042311163,-1614.2,9.8e-05,2]
[356183029,1742042721908,-150.0,9.973e-05,2]
[356183030,1742042721930,-190.0,9.99e-05,2]
[356183031,1742042721951,-192.33,9.99e-05,2]
[356183032,1742042721972,-150.0,9.991e-05,2]
[356183033,1742042721994,-550.0,9.991e-05,2]
[356183034,1742042722015,-150.0,9.999e-05,2]
[356183035,1742042722039,-13706.32874071,0.0001,2]
[356183036,1742042722062,-911.34125929,0.0001,2]
[356183043,1742043037479,-4124.09259838,0.0001,2]
[356183044,1742043037549,-654.06454835,0.0001,2]
[356183045,1742043037729,-281.78311804,0.0001,2]
[356183046,1742043037740,-289.18728201,0.0001,2]
[356183047,1742043037752,-330.3001521,0.0001,2]
[356183048,1742043037763,-1173.73667148,0.0001,2]
[356183049,1742043037772,-1863.32693524,0.0001,2]
[356183067,1742043039824,-627.58223153,0.0001,2]
[356183068,1742043039863,-268.92,0.0001,2]
[356183069,1742043039979,-403.84881045,0.0001,2]
[356183108,1742043045545,-16368.44766314,0.0001,2]
[356183113,1742043510685,-233.11522407,9.8e-05,2]
[356183119,1742044231722,-558.80506623,9.8e-05,2]
[356183120,1742044231781,-499.4397097,9.8e-05,2]
[356183121,1742044231791,-280.65552408,0.0001,2]
[356183122,1742044231802,-349.97130778,0.0001,2]
[356183123,1742044231813,-576.87982491,0.0001,2]
[356183124,1742044231825,-2002.65164984,0.0001,2]
[356183125,1742044231896,-324.80493377,0.0001,2]
[356183126,1742044231908,-716.10875,0.0001,2]
[356183140,1742044237698,-4519.69988162,0.0001,2]
[356183141,1742044237708,-9365.32127954,0.0001,2]
[356183142,1742044237757,-1697.17293,0.0001,2]
[356183157,1742044239907,-256.29341492,0.0001,2]
[356183158,1742044239950,-38.93037924,0.0001,2]
[356183174,1742044245842,-566.25,0.0001,2]
[356183179,1742044714319,-311.0859924,9.8e-05,2]
[356183180,1742044923120,-300.0,9.8e-05,2]
[356183181,1742045086822,-980.9140076,9.7e-05,2]
[356183182,1742045134906,-275.5169924,9.67e-05,2]
[356183185,1742045283360,-131.79664414,9.67e-05,2]
[356183186,1742045283386,-18.20335586,9.76e-05,2]
[356183187,1742045292006,156.52508073,0.0002,120]
[356183190,1742045299560,-168.2308,9.76e-05,2]
[356183206,1742045431904,-363.56584414,9.76e-05,2]
[356183207,1742045431914,-39.29267201,9.8e-05,2]
[356183208,1742045432020,-1367.13832799,9.8e-05,2]
[356183209,1742045432030,-1983.18361317,9.88e-05,2]
[356183210,1742045432043,-3524.42228393,9.88e-05,2]
[356183211,1742045432052,-180.09462205,9.88e-05,2]
[356183212,1742045432062,-150.0,9.899e-05,2]
[356183213,1742045432071,-1946.0738355,9.9e-05,2]
[356183214,1742045432083,-294.09328222,9.9e-05,2]
[356183215,1742045432105,-19.68282309,9.9e-05,2]
[356183216,1742045432115,-250.31717693,9.9e-05,2]
[356183217,1742045432155,-1693.15555652,9.9e-05,2]
[356183218,1742045432166,-476.47053834,9.9e-05,2]
[356183219,1742045432178,-2475.72066215,9.9e-05,2]
[356183220,1742045432189,-828.82723187,9.9e-05,2]
[356183221,1742045432200,-475.425,9.9e-05,2]
[356183222,1742045432211,-1025.55818525,9.9e-05,2]
[356183223,1742045432257,-2457.49286247,9.9e-05,2]
[356183224,1742045432269,-502.85226426,9.9e-05,2]
[356183225,1742045432280,-5835.77814978,9.9e-05,2]
[356183226,1742045432291,-855.80558497,9.9e-05,2]
[356183227,1742045432302,-1754.0,9.9e-05,2]
[356183228,1742045432313,-2091.02155571,9.9e-05,2]
[356183235,1742045432427,-12911.31237993,9.9e-05,2]
[356183252,1742045437773,-22275.75565182,9.9e-05,2]
[356183253,1742045437783,-168.2308,9.9e-05,2]
[356183254,1742045437793,-180.09462205,9.9e-05,2]
[356183255,1742045437803,-350.0,9.99e-05,2]
[356183256,1742045437813,-62807.65373761,0.0001,2]
[356183257,1742045437833,-2056.89156151,0.0001,2]
[356183258,1742045437846,-2015.8,0.0001,2]
[356183259,1742045437857,-4395.79661594,0.0001,2]
[356183270,1742045440035,-181046.87924257,0.0001,2]
[356183271,1742045440155,-0.00451923,0.0001,2]
[356183272,1742045440265,-1199.50879797,0.0001,2]
[356183273,1742045440277,-338.80410017,0.0001,2]
[356183277,1742045442969,-4526.32283466,0.0001,2]
[356183299,1742045446132,-496.7291,9.9e-05,2]
[356183300,1742045446143,-36959.60177809,0.0001,2]
[356183301,1742045446154,-23793.77508796,0.0001,2]
[356183302,1742045446167,-581.1519,0.0001,2]
[356183307,1742046250868,152.0,0.00014,30]
[356183308,1742046251149,152.0,0.00014,30]
[356183316,1742046632023,-150.0,9.863e-05,2]
[356183317,1742046632035,-150.0,9.881e-05,2]
[356183318,1742046632045,-150.0,9.899e-05,2]
[356183319,1742046632055,-334.9039,9.9e-05,2]
[356183320,1742046632066,-181.6576,9.9e-05,2]
[356183321,1742046632076,-292.0511,9.9e-05,2]
[356183322,1742046632085,-223.9361398,9.9e-05,2]
[356183323,1742046632098,-13055.7632894,9.9e-05,2]
[356183324,1742046632110,-1182.86890123,9.9e-05,2]
[356183325,1742046632122,-606.55715538,9.9e-05,2]
[356183326,1742046632138,-1620.7419444,9.9e-05,2]
[356183327,1742046632198,-403.10468688,9.9e-05,2]
[356183328,1742046632211,-1865.69249295,9.9e-05,2]
[356183329,1742046632222,-322.78,9.9e-05,2]
[356183330,1742046632312,-550.99707701,9.9e-05,2]
[356183331,1742046632324,-512.60815324,9.9e-05,2]
[356183332,1742046632377,-4745.519166,9.9e-05,2]
[356183363,1742046637924,-1488.00414557,9.9e-05,2]
[356183364,1742046638151,-19817.91812457,9.9e-05,2]
[356183365,1742046638163,-17798.93942357,9.9e-05,2]
[356183366,1742046638174,-87.24035035,9.9e-05,2]
[356183367,1742046638186,-436.40414965,9.9e-05,2]
[356183368,1742046638196,-16625.73722868,9.9e-05,2]
[356183369,1742046638215,-3267.0,9.9e-05,2]
[356183370,1742046638227,-1356.55,9.9e-05,2]
[356183371,1742046638239,-371.47847132,9.9e-05,2]
[356183372,1742046638249,-3696.4086,9.9e-05,2]
[356183373,1742046638259,-915.7871,9.9e-05,2]
[356183374,1742046638269,-600.6822,9.9e-05,2]
[356183375,1742046638279,-300.0,9.99e-05,2]
[356183376,1742046638288,-5009.65909745,0.0001,2]
[356183382,1742046640270,-25656.00150901,0.0001,2]
[356183383,1742046640280,-155390.87773356,0.0001,2]
[356183384,1742046640443,-1504.02127916,0.0001,2]
[356183385,1742046640534,-6610.00520267,0.0001,2]
[356183386,1742046640557,-1040.05377796,0.0001,2]
[356183387,1742046640596,-1161.33140907,0.0001,2]
[356183388,1742046640607,-7187.46907834,0.0001,2]
[356183394,1742046643201,-15458.38097161,0.0001,2]
[356183410,1742046646116,-9387.17316044,0.0001,2]
[356183411,1742046646128,-435.489995,0.0001,2]
[356183412,1742046646145,-22545.5625134,0.0001,2]
[356183413,1742046646190,-957.28164627,0.0001,2]
[356183414,1742046646202,-34035.42120159,0.0001,2]
[356183415,1742046646218,-5787.99684675,0.0001,2]
[356183416,1742046646305,-36270.04651845,0.0001,2]
[356183417,1742046646318,-48459.36409331,0.0001,2]
[356183418,1742046646332,-20180.13889014,0.0001,2]
[356183419,1742046646342,-150.48437939,0.0001,2]
[356183420,1742046646353,-215.22003322,0.0001,2]
[356183421,1742046646364,-13890.75070725,0.0001,2]
[356183422,1742046646391,-1475.33808343,0.0001,2]
[356183423,1742046646404,-10110.3073464,0.0001,2]
[356183424,1742046646418,-1447.60063062,0.0001,2]
[356183426,1742046646436,-10826.3748762,0.0001,2]
[356183435,1742047832432,-193.99035928,9.99e-05,2]
[356183436,1742047832443,-550.0,9.995e-05,2]
[356183437,1742047832453,-150.0,9.995e-05,2]
[356183438,1742047832464,-11.22106901,0.0001,2]
[356183439,1742047832494,-550.0,0.0001,2]
[356183440,1742047832556,-84684.30685992,0.0001,2]
[356183455,1742047838106,-439.215,0.0001,2]
[356183463,1742047838169,-517.07491599,0.0001,2]
[356183465,1742047838189,-453.79779083,0.0001,2]
[356183469,1742047838231,-474.19459788,0.0001,2]
[356183470,1742047838246,-913.28609135,0.0001,2]
[356183471,1742047838261,-1058.45,0.0001,2]
[356183472,1742047838276,-1917.86502162,0.0001,2]
[356183483,1742047840432,-1035.9173662,0.0001,2]
[356183484,1742047840563,-1051.7425531,0.0001,2]
[356183485,1742047840577,-1628.162577,0.0001,2]
[356183486,1742047840808,-2371.87351766,0.0001,2]
[356183487,1742047840822,-282.0,0.0001,2]